bitfinex-derivatives/quotes_ETHF0:USTF0_20250904
["timestamp","ask_amount","ask_price","bid_price","bid_amount"]
[1757013008858,0.7323,4282.5,4282.4,0.2931]
[1757013009060,0.7323,4282.5,4282.4,0.32273469]
[1757013009458,1.1525,4282.5,4282.4,0.32273469]
[1757013010857,5.1525,4282.5,4282.4,0.32273469]
[1757013011053,0.2907,4281.3,4281.2,0.7184]
[1757013011263,0.2907,4281.3,4281.2,4.2217]
[1757013012965,3.2078,4282.2,4282.1,0.4253]
[1757013013257,3.2078,4282.2,4282.1,1.0139]
[1757013013258,4.1916,4282.2,4282.1,1.0139]
[1757013013565,3.7714,4282.2,4282.1,1.0139]
[1757013014563,4.1916,4282.2,4282.1,1.0139]
[1757013015153,0.9838,4282.2,4282.1,1.0139]
[1757013015553,0.9838,4282.2,4281.7,3.2078]
[1757013015554,0.4202,4282.1,4281.7,3.6331]
[1757013015760,0.5636,4281.8,4281.7,4.2217]
[1757013016358,0.9838,4281.8,4281.7,4.2217]
[1757013016567,0.9838,4281.8,4281.7,3.5009]
[1757013016757,0.9838,4281.8,4281.7,0.2931]
[1757013018180,0.2642,4281.4,4281.3,0.9761]
[1757013019367,0.24,4281.8,4281.4,0.4364]
[1757013019667,1.1976,4281.8,4281.7,0.7029]
[1757013023465,3.472,4282.1,4282.0,0.7096]
[1757013023669,3.2078,4282.1,4282.0,1.146]
[1757013023967,0.6597,4282.4,4282.0,0.7096]
[1757013024167,0.2642,4282.1,4282.0,0.7096]
[1757013024659,0.2642,4282.1,4282.0,1.146]
[1757013025464,0.9576,4282.1,4282.0,1.146]
[1757013025967,0.5379,4282.1,4282.0,1.146]
[1757013026666,0.9576,4282.1,4282.0,1.146]
[1757013027064,0.9576,4282.1,4281.6,0.4364]
[1757013027262,0.2642,4281.7,4281.6,0.9761]
[1757013027869,0.4197,4282.0,4281.6,0.5397]
[1757013028069,0.7779,4282.2,4281.8,0.4364]
[1757013028270,0.5379,4281.9,4281.5,0.1699]
[1757013028568,0.9576,4281.8,4281.7,0.7029]
[1757013028769,0.9576,4281.8,4281.7,0.9761]
[1757013029269,0.2642,4281.8,4281.7,0.9761]
[1757013029469,0.6597,4282.2,4281.7,0.9761]
[1757013029765,0.9239,4282.2,4282.1,0.2665]
[1757013030069,1.1976,4282.2,4282.1,0.7029]
[1757013030466,1.1976,4282.2,4281.5,0.1699]
[1757013030669,0.9576,4281.6,4281.5,0.8728]
[1757013030974,0.5379,4281.6,4281.5,1.146]
[1757013031972,0.2642,4281.6,4281.5,1.146]
[1757013032169,0.4197,4281.9,4281.5,1.146]
[1757013032370,3.2078,4282.1,4281.6,0.4364]
[1757013032672,3.7457,4282.1,4282.0,0.7029]
[1757013033071,4.1654,4282.1,4282.0,0.7029]
[1757013033668,4.1654,4282.1,4282.0,0.2665]
[1757013033869,4.1654,4282.1,4281.6,0.4364]
[1757013034072,0.4197,4282.0,4281.6,0.4364]
[1757013034369,0.5379,4281.7,4281.6,0.9761]
[1757013034571,0.9576,4281.7,4281.6,0.9761]
[1757013037771,0.9576,4281.7,4281.6,0.7029]
[1757013038276,0.9576,4281.7,4281.6,0.9761]
[1757013038576,0.4197,4282.0,4281.7,0.4364]
[1757013039166,0.9576,4282.0,4281.9,0.5397]
[1757013039366,0.5379,4282.0,4281.9,0.9761]
[1757013041973,0.7779,4282.0,4281.9,0.9761]
[1757013043082,3.8207,4282.1,4282.0,0.6063]
[1757013043277,0.6129,4282.1,4282.0,1.37954]
[1757013043679,0.6129,4282.1,4282.0,1.146]
[1757013044277,0.6129,4282.1,4282.0,1.37953]
[1757013044682,0.6129,4282.1,4282.0,1.146]
[1757013046985,1.5705,4282.1,4282.0,1.146]
[1757013047179,1.5705,4282.1,4282.0,0.9761]
[1757013047681,1.5705,4282.1,4282.0,1.1319]
[1757013047883,1.1508,4282.1,4282.0,1.1319]
[1757013048583,1.5684,4282.1,4282.0,1.1319]
[1757013051787,1.5684,4282.1,4282.0,0.9761]
[1757013052686,0.5637,4281.7,4281.6,2.49610518]
[1757013052885,0.9813,4281.7,4281.6,0.3955]
[1757013054294,0.9813,4281.7,4281.6,0.6664]
[1757013054486,0.9813,4281.7,4281.6,0.9313]
[1757013055490,0.5637,4281.7,4281.6,0.9313]
[1757013056083,0.9813,4281.7,4281.6,0.9313]
[1757013059090,0.9813,4281.7,4281.1,0.3955]
[1757013060297,0.2827,4281.2,4281.1,0.9313]
[1757013060685,0.24,4281.5,4281.2,0.3955]
[1757013060890,0.24,4281.5,4281.0,0.1667]
[1757013060891,0.5227,4281.5,4281.4,0.9313]
[1757013061191,0.8958,4281.6,4281.5,1.0871]
[1757013061390,1.1358,4281.6,4281.5,1.0871]
[1757013062596,1.5534,4281.6,4281.5,1.0871]
[1757013062796,1.8344,4281.6,4281.5,1.0871]
[1757013063000,1.8344,4281.6,4281.5,0.9313]
[1757013063205,1.8344,4281.6,4281.5,0.6664]
[1757013063798,1.4168,4281.6,4281.5,1.0871]
[1757013064897,1.8344,4281.6,4281.5,0.9313]
[1757013065501,1.8344,4281.6,4281.5,1.0871]
[1757013066196,1.8344,4281.6,4281.5,0.9313]
[1757013066400,1.8344,4281.6,4281.5,0.2709]
[1757013066603,1.8344,4281.6,4281.0,0.1667]
[1757013066796,1.8344,4281.6,4281.1,0.3955]
[1757013067198,0.9813,4281.5,4281.4,0.2709]
[1757013067503,0.9813,4281.5,4281.4,0.6664]
[1757013068103,1.1398,4281.5,4280.7,5.70390518]
[1757013068308,0.4176,4280.7,4280.4,2.49610518]
[1757013068507,0.9813,4280.1,4280.0,0.8222]
[1757013068710,0.9813,4280.1,4280.0,1.0871]
[1757013069095,0.9813,4280.1,4280.0,0.6664]
[1757013069905,0.9813,4280.1,4280.0,0.9313]
[1757013070107,0.9813,4280.1,4280.0,1.0871]
[1757013070413,0.5637,4280.1,4280.0,1.0871]
[1757013070597,0.9813,4280.1,4280.0,1.0871]
[1757013071504,0.24,4280.2,4279.5,0.6664]
[1757013071505,0.5637,4279.6,4279.5,0.6664]
[1757013071706,1.2213,4279.6,4279.5,0.2709]
[1757013072511,0.9813,4279.3,4279.2,0.3955]
[1757013072704,0.9813,4279.3,4279.2,0.6664]
[1757013073504,0.9813,4279.3,4278.8,0.3955]
[1757013073706,0.2827,4278.6,4278.5,1.0871]
[1757013074304,0.8282,4278.6,4278.5,1.0871]
[1757013074511,1.5268,4278.6,4278.5,1.0871]
[1757013074908,1.5268,4278.6,4278.5,0.9313]
[1757013075212,1.5268,4278.6,4278.5,0.6664]
[1757013076716,0.5637,4278.4,4278.3,0.9313]
[1757013076915,0.2827,4278.4,4278.3,0.9313]
[1757013077116,0.5455,4278.6,4278.5,1.0871]
[1757013078816,3.2078,4279.5,4278.5,5.16532]
[1757013079019,3.2078,4279.5,4279.4,0.9634]
[1757013079020,0.2726,4279.5,4279.4,0.9634]
[1757013079318,0.6617,4279.5,4279.4,0.9634]
[1757013079917,0.2726,4278.9,4278.8,0.9634]
[1757013080116,0.3891,4279.1,4278.8,0.9634]
[1757013080314,0.3891,4279.1,4278.9,0.4046]
[1757013080513,0.6617,4279.1,4279.0,0.9634]
[1757013081115,0.1598,4279.5,4279.1,0.4046]
[1757013081420,0.6291,4279.9,4279.4,0.4046]
[1757013081717,1.1571,4279.9,4279.8,0.2802]
[1757013083020,1.1571,4279.9,4279.8,0.5588]
[1757013085120,0.9171,4279.9,4279.8,0.5588]
[1757013085323,0.3891,4280.1,4279.9,0.4046]
[1757013085622,0.6617,4280.0,4279.9,0.9634]
[1757013085818,3.2078,4280.2,4279.9,0.5588]
[1757013086125,0.3891,4280.2,4280.1,0.9634]
[1757013087016,0.6617,4280.2,4280.1,0.9634]
[1757013089017,0.24,4280.6,4280.2,0.4046]
[1757013089218,0.3891,4280.6,4280.3,0.4046]
[1757013089523,0.528,4280.8,4280.7,0.5588]
[1757013089918,0.9171,4280.8,4280.7,0.5588]
[1757013090122,0.9171,4280.8,4280.7,0.2802]
[1757013090324,0.9171,4280.8,4280.7,0.9634]
[1757013091120,0.6617,4280.8,4280.7,0.9634]
[1757013091521,0.2726,4281.5,4281.4,0.5588]
[1757013091718,0.6617,4281.5,4281.4,0.9634]
[1757013091913,0.9171,4281.5,4281.4,0.9634]
[1757013092113,1.0769,4281.5,4281.4,0.9634]
[1757013093125,1.0769,4281.5,4281.4,0.5588]
[1757013093424,0.6617,4281.5,4281.4,0.9634]
[1757013093625,0.6131,4281.6,4281.5,1.1192]
[1757013094013,1.5302,4281.6,4281.5,0.9634]
[1757013094213,1.5302,4281.6,4281.5,0.2802]
[1757013094418,0.9171,4281.4,4281.3,3.488]
[1757013094627,1.0022,4281.6,4281.3,3.7666]
[1757013094922,1.5302,4281.6,4281.5,0.9634]
[1757013096818,1.2748,4281.6,4281.5,0.9634]
[1757013097125,0.6131,4281.6,4281.5,1.1192]
[1757013098126,0.3891,4282.4,4282.2,0.42027]
[1757013098320,0.5489,4282.5,4282.3,0.42026]
[1757013098826,0.5489,4282.5,4282.4,3.2078]
[1757013099928,0.3891,4282.5,4282.4,3.2078]
[1757013100117,0.5489,4283.0,4282.4,3.2078]
[1757013100323,1.0769,4283.0,4282.9,3.2078]
[1757013101132,0.8215,4283.0,4282.9,3.2078]
[1757013101330,0.5489,4283.0,4282.9,3.2078]
[1757013104724,0.8215,4283.0,4282.9,3.2078]
[1757013105326,0.1598,4282.5,4281.8,3.2078]
[1757013105530,0.3891,4282.4,4281.9,3.4478]
[1757013105728,0.5489,4282.0,4281.9,3.4478]
[1757013105920,0.1598,4282.5,4281.9,3.4478]
[1757013106427,0.5489,4282.0,4281.9,3.4478]
[1757013106827,0.5489,4282.0,4281.9,3.8681]
[1757013107228,0.5489,4282.0,4281.9,3.4478]
[1757013107835,0.5489,4282.0,4281.9,3.8681]
[1757013108245,0.5489,4282.0,4281.9,3.4478]
[1757013108438,0.5489,4282.0,4281.9,3.8681]
[1757013108624,0.8215,4282.0,4281.9,3.2078]
[1757013108826,1.0971,4282.0,4281.9,3.4468]
[1757013109028,0.5489,4282.0,4281.9,3.4468]
[1757013109830,0.8238,4282.0,4281.9,3.4468]
[1757013111040,0.1679,4281.5,4281.4,44.0078]
[1757013111239,1.1293,4281.5,4281.4,3.2078]
[1757013111439,1.1293,4281.5,4281.4,3.4468]
[1757013113739,0.8537,4281.5,4281.4,3.4468]
[1757013113940,0.5788,4281.5,4281.4,3.4468]
[1757013116639,0.8537,4281.5,4281.4,3.86715]
[1757013116844,0.5788,4281.5,4281.4,3.86715]
[1757013117144,0.8537,4281.5,4281.4,3.86715]
[1757013117943,0.8537,4281.5,4281.4,3.4468]
[1757013118543,0.8537,4281.5,4281.4,3.86715]
[1757013118946,0.4109,4280.9,4280.8,5.72881518]
[1757013119145,0.4109,4281.4,4281.3,0.42035]
[1757013119448,0.5788,4281.5,4281.3,3.86715]
[1757013119944,0.5788,4281.5,4281.4,0.42035]
[1757013120148,0.4347,4282.0,4281.3,3.86716]
[1757013120338,0.6858,4281.9,4281.3,3.86716]
[1757013120543,0.1598,4282.0,4281.8,3.2078]
[1757013120842,0.4109,4281.9,4281.8,3.86711]
[1757013121043,0.4109,4281.9,4281.8,3.4468]
[1757013121649,0.6858,4281.9,4281.8,3.4468]
[1757013122750,0.4109,4281.9,4281.8,3.4468]
[1757013123956,0.6858,4281.9,4281.8,3.4468]
[1757013124157,0.9614,4281.9,4281.8,3.4468]
[1757013124950,0.9614,4281.9,4281.8,3.2078]
[1757013125151,0.9614,4281.9,4281.8,3.4468]
[1757013126351,0.6858,4281.9,4281.8,3.4468]
[1757013126754,0.4109,4281.9,4281.8,3.86711]
[1757013126945,0.5707,4282.0,4281.8,3.86711]
[1757013127354,0.4109,4281.9,4281.8,3.86711]
[1757013127555,0.4109,4281.9,4281.8,3.4468]
[1757013127852,0.9614,4281.9,4281.8,3.2078]
[1757013128060,0.9614,4281.9,4281.8,3.4468]
[1757013128446,0.5505,4281.4,4281.3,3.4468]
[1757013128650,0.9614,4281.4,4281.3,3.4468]
[1757013132850,0.4109,4281.4,4281.3,3.4468]
[1757013133056,0.4109,4281.9,4281.3,3.86716]
[1757013133256,0.2749,4281.8,4281.3,3.4468]
[1757013133456,0.4109,4281.4,4281.3,3.4468]
[1757013136261,0.1679,4281.5,4281.3,3.4468]
[1757013136462,0.4347,4282.0,4281.3,3.4468]
[1757013136659,0.6858,4281.9,4281.3,3.4468]
[1757013136860,0.4109,4281.8,4281.3,3.4468]
[1757013137063,0.4109,4281.7,4281.3,3.4468]
[1757013137268,0.1598,4282.0,4281.3,5.54740518]
[1757013137269,0.2749,4281.9,4281.3,5.54740518]
[1757013137465,0.4109,4281.7,4281.3,5.96776518]
[1757013137766,0.4372,4283.0,4281.7,1.05081]
[1757013137963,0.2603,4282.7,4282.6,3.2078]
[1757013138161,0.5296,4282.7,4282.4,2.10060518]
[1757013138466,0.9392,4282.3,4282.2,2.33960518]
[1757013138666,0.9392,4282.3,4282.2,0.239]
[1757013139061,0.9392,4282.3,4281.9,3.2078]
[1757013139062,0.5296,4282.3,4281.9,3.2078]
[1757013139267,0.1544,4282.5,4281.9,3.2078]
[1757013139268,0.9392,4282.2,4282.0,0.239]
[1757013139962,0.1544,4282.0,4281.9,3.2078]
[1757013140165,1.0936,4282.0,4281.9,3.2078]
[1757013141761,1.0936,4282.0,4281.7,0.239]
[1757013141762,0.684,4282.0,4281.8,3.2078]
[1757013141967,0.9392,4281.9,4281.8,3.2078]
[1757013142169,0.4096,4281.8,4281.5,2.09707]
[1757013142363,0.9392,4281.6,4281.4,2.09707]
[1757013142570,1.0936,4281.5,4281.3,0.239]
[1757013143272,1.0936,4281.5,4281.2,3.2078]
[1757013143273,0.4096,4281.4,4281.2,3.2078]
[1757013143471,0.9392,4281.3,4281.2,3.2078]
[1757013143861,4.9392,4281.3,4281.2,3.2078]
[1757013144964,4.9392,4281.3,4280.6,0.239]
[1757013144965,0.1544,4281.0,4280.6,0.239]
[1757013145174,0.4096,4280.9,4280.6,0.239]
[1757013145573,0.4237,4281.0,4280.6,0.239]
[1757013145870,0.4237,4281.0,4280.6,0.65943]
[1757013146070,0.4096,4280.9,4280.6,0.65943]
[1757013146265,0.4096,4280.9,4280.7,0.42042]
[1757013146465,0.4096,4280.9,4280.8,0.239]
[1757013147167,0.1544,4281.0,4280.8,0.6594]
[1757013147368,0.2711,4281.5,4280.8,0.6594]
[1757013147369,0.4096,4281.3,4281.1,0.42038]
[1757013147673,0.4096,4281.3,4281.2,0.239]
[1757013148668,0.6789,4281.3,4281.2,0.239]
[1757013150176,0.6789,4281.3,4281.2,3.4468]
[1757013150868,0.9392,4281.3,4281.2,3.4468]
[1757013153883,0.6789,4281.3,4281.2,3.4468]
[1757013156883,0.4096,4281.3,4281.2,3.4468]
[1757013160487,0.6789,4281.3,4281.2,3.4468]
[1757013161188,0.4096,4281.3,4281.2,3.4468]
[1757013161586,0.2711,4281.5,4281.2,3.4468]
[1757013161587,0.6807,4281.5,4281.2,3.4468]
[1757013161785,0.6807,4281.5,4281.2,3.86717]
[1757013162183,0.4096,4281.4,4281.2,3.86717]
[1757013163484,0.4096,4281.4,4281.2,3.4468]
[1757013164087,0.4096,4281.3,4281.2,3.4468]
[1757013165182,0.1167,4281.5,4281.4,0.42035]
[1757013165386,0.4096,4281.8,4281.4,0.42035]
[1757013165387,0.4096,4281.8,4281.4,2.75505876]
[1757013165681,0.2693,4281.9,4281.7,3.2078]
[1757013165887,0.2693,4281.9,4281.8,0.239]
[1757013166280,0.6789,4281.9,4281.8,0.239]
[1757013167388,0.9392,4281.9,4281.8,0.239]
[1757013169782,0.5296,4281.9,4281.7,3.2078]
[1757013169984,0.8934,4281.6,4281.5,2.09570876]
[1757013170188,0.1565,4281.5,4281.2,3.2078]
[1757013170390,0.8934,4281.3,4281.2,3.2078]
[1757013178392,0.8934,4281.3,4280.9,0.239]
[1757013178592,0.8021,4281.0,4280.9,0.239]
[1757013179495,0.3927,4281.0,4280.9,0.239]
[1757013179696,0.5492,4281.0,4280.9,0.239]
[1757013180690,0.8021,4281.0,4280.9,0.239]
[1757013181090,0.3927,4280.9,4280.8,2.09570876]
[1757013181290,0.8934,4280.9,4280.8,2.33470876]
[1757013182197,0.8934,4280.9,4280.8,2.09570876]
[1757013182493,0.8934,4280.8,4280.7,0.239]
[1757013184500,0.3927,4280.8,4280.7,0.239]
[1757013184998,0.3927,4280.8,4280.7,2.75512876]
[1757013185195,0.5492,4281.0,4280.7,2.75512876]
[1757013185399,0.3927,4281.9,4281.1,1.05096]
[1757013185595,0.1167,4282.1,4281.8,0.42031]
[1757013185902,0.3927,4282.0,4281.9,0.239]
[1757013186097,0.3927,4282.0,4281.8,2.09717694]
[1757013186098,0.8934,4281.9,4281.8,2.09717694]
[1757013186294,0.8934,4281.9,4281.8,0.239]
[1757013194705,0.8934,4281.9,4281.5,2.09717694]
[1757013194706,0.3927,4281.8,4281.5,2.09717694]
[1757013194906,0.5492,4281.5,4281.4,0.239]
[1757013195205,1.0499,4281.5,4281.4,0.239]
[1757013203007,1.0499,4281.5,4281.0,2.09717694]
[1757013203202,0.4888,4281.2,4281.1,0.239]
[1757013203406,0.8579,4281.2,4281.1,0.239]
[1757013204594,0.6143,4281.2,4281.1,0.65938]
[1757013204799,0.3691,4281.2,4281.1,0.65938]
[1757013205000,0.3691,4281.2,4281.1,2.75655694]
[1757013205493,0.3691,4281.2,4281.1,0.65938]
[1757013206303,0.5256,4281.5,4281.4,0.42035]
[1757013206501,0.1167,4281.7,4281.4,3.4468]
[1757013206703,0.4858,4281.7,4281.6,2.5164065]
[1757013207802,0.4858,4281.7,4281.6,0.42033]
[1757013208509,0.1167,4281.7,4281.6,0.42033]
[1757013208710,0.3691,4282.4,4282.3,0.42026]
[1757013209003,0.3691,4282.7,4282.3,3.4468]
[1757013209201,0.6143,4282.9,4282.8,0.42021]
[1757013209404,0.6143,4282.9,4282.8,3.86701]
[1757013209906,0.6143,4282.9,4282.8,3.4468]
[1757013210610,0.8579,4282.9,4282.8,3.4468]
[1757013211208,0.1532,4283.5,4282.8,7.4468]
[1757013211412,0.5223,4284.0,4283.4,5.30048758]
[1757013211706,0.7675,4284.0,4283.9,3.2078]
[1757013211912,0.7675,4284.0,4283.9,3.4468]
[1757013213110,1.0111,4284.0,4283.9,3.4468]
[1757013213806,0.7675,4284.0,4283.9,3.4468]
[1757013214008,1.0111,4284.0,4283.9,3.4468]
[1757013214210,0.8579,4283.4,4283.3,3.2078]
[1757013214717,0.8579,4283.4,4283.3,3.4468]
[1757013216011,0.8579,4283.4,4283.3,0.239]
[1757013220016,0.3691,4282.8,4282.3,2.09268758]
[1757013220216,0.1532,4282.5,4282.4,0.239]
[1757013220416,1.0111,4282.0,4281.9,3.2078]
[1757013220621,1.0111,4282.0,4281.9,3.4468]
[1757013220814,0.5223,4282.0,4281.9,3.4468]
[1757013221121,1.0111,4282.0,4281.9,3.4468]
[1757013223117,1.0111,4282.0,4281.9,3.2078]
[1757013231119,1.0111,4282.0,4281.9,3.4468]
[1757013232015,1.0111,4282.0,4281.9,0.239]
[1757013232421,0.7675,4282.0,4281.9,0.239]
[1757013233224,1.0195,4282.0,4281.9,0.239]
[1757013236425,0.4925,4281.4,4280.8,6.2028]
[1757013236631,1.0391,4281.0,4280.9,0.239]
[1757013238723,0.3944,4280.9,4280.8,3.2078]
[1757013238923,0.8869,4280.9,4280.8,3.4468]
[1757013241229,0.6349,4280.9,4280.8,3.4468]
[1757013241429,0.3944,4280.9,4280.8,3.86721]
[1757013241630,0.6349,4280.9,4280.8,3.4468]
[1757013242024,0.3944,4280.9,4280.8,3.4468]
[1757013242429,0.1522,4281.0,4280.9,0.4204]
[1757013242629,0.5466,4281.5,4281.3,0.42036]
[1757013242830,0.5466,4281.5,4281.4,3.4468]
[1757013243435,0.7871,4281.5,4281.4,3.4468]
[1757013244430,0.5466,4281.5,4281.4,3.4468]
[1757013244828,0.7871,4281.5,4281.4,3.4468]
[1757013245036,0.5466,4281.5,4281.4,3.4468]
[1757013246036,0.7871,4281.5,4281.4,3.4468]
[1757013246634,0.5466,4281.5,4281.4,3.4468]
[1757013247247,0.7871,4281.5,4281.4,3.4468]
[1757013247749,5.0391,4281.5,4281.4,3.2078]
[1757013247950,0.8869,4280.8,4280.7,3.2078]
[1757013248149,0.8869,4280.8,4280.7,3.4468]
[1757013249250,0.8869,4280.8,4280.7,3.86722]
[1757013249251,0.3944,4280.8,4280.7,3.86722]
[1757013249550,0.3944,4281.2,4280.9,0.4204]
[1757013249752,0.3944,4281.2,4281.0,0.239]
[1757013249955,0.6349,4281.4,4281.0,0.239]
[1757013250250,0.8869,4281.3,4281.2,3.2078]
[1757013250453,0.8869,4281.3,4281.2,3.4468]
[1757013251147,0.3944,4281.3,4281.2,3.86717]
[1757013251348,0.3944,4281.3,4281.2,3.4468]
[1757013251553,0.6349,4281.3,4281.2,3.2078]
[1757013251753,0.3944,4281.3,4281.2,3.86717]
[1757013252552,0.3944,4281.3,4281.2,3.4468]
[1757013252752,0.3944,4281.3,4281.2,3.86717]
[1757013252948,0.3944,4281.4,4281.2,3.4468]
[1757013253249,0.3944,4281.4,4281.2,3.86716]
[1757013253452,0.1532,4282.0,4281.5,0.42034]
[1757013253654,0.3944,4281.8,4281.7,3.2078]
[1757013253856,0.6349,4281.8,4281.7,3.4468]
[1757013254555,0.8869,4281.8,4281.7,3.4468]
[1757013255452,0.8869,4281.8,4281.7,3.2078]
[1757013255653,0.8869,4281.8,4281.7,3.4468]
[1757013257258,0.3944,4281.8,4281.7,3.4468]
[1757013257652,0.6349,4281.8,4281.7,3.4468]
[1757013259562,0.3944,4281.8,4281.7,3.4468]
[1757013259959,0.644,4281.8,4281.7,3.4468]
[1757013260357,0.3944,4281.8,4281.7,3.4468]
[1757013261566,0.644,4281.8,4281.7,3.4468]
[1757013262164,0.3944,4281.8,4281.7,3.4468]
[1757013263458,0.901,4281.8,4281.7,3.4468]
[1757013264057,0.901,4281.8,4281.7,3.2078]
[1757013264266,0.901,4281.8,4281.7,3.4468]
[1757013266557,0.644,4281.8,4281.7,3.4468]
[1757013266968,0.3944,4281.8,4281.7,3.4468]
[1757013269158,0.901,4281.8,4281.7,3.4468]
[1757013270270,0.5066,4281.3,4281.2,3.2078]
[1757013270471,0.8804,4281.3,4281.2,3.2078]
[1757013270874,0.3738,4281.3,4281.2,3.2078]
[1757013272372,0.8804,4281.3,4281.2,3.2078]
[1757013273372,0.8804,4281.3,4281.2,3.4458]
[1757013279980,0.8804,4281.3,4281.2,3.2078]
[1757013280181,0.8804,4281.3,4281.2,3.4458]
[1757013280680,0.3738,4281.3,4281.2,3.4458]
[1757013282378,0.514,4281.5,4281.2,3.4458]
[1757013282682,0.3738,4281.9,4281.3,0.42036]
[1757013282883,0.3738,4281.9,4281.4,0.238]
[1757013283271,0.4028,4282.0,4281.7,3.2078]
[1757013283476,0.3738,4281.9,4281.8,0.238]
[1757013284282,0.6234,4281.9,4281.8,0.238]
[1757013284672,0.8804,4281.9,4281.8,0.238]
[1757013288092,0.6234,4281.9,4281.8,0.65831]
[1757013288384,0.6234,4281.9,4281.8,0.238]
[1757013288988,0.8531,4281.9,4281.8,0.238]
[1757013290093,0.8531,4281.9,4281.7,3.2078]
[1757013290392,0.4793,4281.9,4281.8,0.238]
[1757013290784,0.8351,4281.9,4281.8,0.238]
[1757013292787,0.509,4282.0,4281.9,0.4203]
[1757013292989,0.3704,4282.2,4282.1,0.42028]
[1757013293190,0.3704,4282.2,4282.1,0.65828]
[1757013293392,0.509,4282.5,4282.4,0.42025]
[1757013293592,0.509,4282.5,4282.4,3.86605]
[1757013293994,0.3558,4282.9,4282.7,0.42022]
[1757013294195,0.3558,4282.9,4282.8,0.65821]
[1757013294997,0.1522,4283.0,4282.8,4.8917]
[1757013295197,0.1522,4283.0,4282.9,3.2078]
[1757013295390,0.508,4283.0,4282.9,3.2078]
[1757013296601,0.7577,4283.0,4282.9,3.2078]
[1757013298399,0.508,4283.0,4282.9,3.2078]
[1757013298609,0.3558,4283.2,4282.9,3.2078]
[1757013298809,0.3558,4283.2,4283.0,0.6582]
[1757013299204,0.3558,4283.2,4283.1,0.42018]
[1757013299402,0.6055,4283.2,4283.1,0.42018]
[1757013300008,0.3558,4283.2,4283.1,0.42018]
[1757013301004,0.6055,4283.2,4283.1,0.42018]
[1757013302103,0.3703,4283.3,4283.2,0.42018]
[1757013302304,0.5017,4284.0,4283.9,0.42011]
[1757013302506,0.1459,4284.5,4284.4,0.42006]
[1757013302811,0.1459,4284.5,4284.4,3.86586]
[1757013303111,0.5017,4284.5,4284.4,3.86586]
[1757013303312,0.5017,4284.5,4284.4,3.4458]
[1757013303518,0.7514,4284.5,4284.4,3.4458]
[1757013304916,0.9811,4284.5,4284.4,3.4458]
[1757013306714,4.9811,4284.5,4284.4,3.2078]
[1757013309517,4.9811,4284.5,4284.2,0.238]
[1757013310924,4.9811,4284.5,4282.7,1.05055]
[1757013310925,0.8352,4283.3,4283.2,3.2078]
[1757013311120,0.8352,4283.3,4283.2,3.4458]
[1757013311316,0.3558,4283.3,4283.2,3.4458]
[1757013312121,0.3558,4283.3,4283.2,3.86598]
[1757013312421,0.6055,4283.3,4283.2,3.86598]
[1757013313426,0.3558,4283.3,4283.2,3.86598]
[1757013313628,0.6055,4283.3,4283.2,3.86598]
[1757013314222,0.3558,4283.3,4283.2,3.86598]
[1757013315027,0.5017,4283.5,4283.4,0.42016]
[1757013315226,0.5017,4283.5,4283.4,0.65816]
[1757013315922,0.7514,4284.0,4283.9,0.42011]
[1757013316228,0.7514,4284.0,4283.9,3.4458]
[1757013316529,0.9811,4284.0,4283.9,3.4458]
[1757013316726,0.9811,4284.0,4283.9,3.2078]
[1757013317026,0.9811,4284.0,4283.9,0.238]
[1757013320422,0.4763,4283.3,4283.2,3.2078]
[1757013320626,0.816,4283.3,4283.2,3.4458]
[1757013320823,0.816,4283.3,4283.2,0.238]
[1757013322421,0.148,4283.5,4283.2,3.4458]
[1757013322628,0.1459,4284.0,4283.5,0.2387]
[1757013322936,0.6243,4283.5,4283.4,0.238]
[1757013323432,0.6243,4283.5,4283.4,0.4785]
[1757013324229,0.1459,4284.0,4283.4,0.9492]
[1757013324533,0.3397,4283.9,4283.4,0.9492]
[1757013324933,0.3397,4283.9,4283.4,0.7105]
[1757013325329,0.1459,4284.0,4283.4,0.7105]
[1757013325530,0.3397,4283.9,4283.4,1.36936]
[1757013325731,0.816,4283.9,4283.8,3.6803]
[1757013325928,0.816,4283.9,4283.8,3.2078]
[1757013327431,0.816,4283.9,4283.8,3.4483]
[1757013327836,0.816,4283.9,4283.8,3.2078]
[1757013328931,0.816,4283.9,4283.8,3.6803]
[1757013329137,0.816,4283.9,4283.8,3.2078]
[1757013329733,0.816,4283.9,4283.3,0.2387]
[1757013329734,0.816,4283.4,4283.3,3.2078]
[1757013332137,0.816,4283.4,4283.3,3.6803]
[1757013333929,0.3397,4283.4,4283.3,3.919]
[1757013334136,0.5695,4283.4,4283.3,3.6803]
[1757013334440,0.5695,4283.4,4283.3,3.919]
[1757013334938,0.3397,4283.4,4283.3,3.919]
[1757013335237,0.816,4283.9,4283.8,0.4725]
[1757013335633,0.816,4283.9,4283.8,3.6803]
[1757013336945,0.816,4283.9,4283.8,3.2078]
[1757013338345,0.816,4283.9,4283.8,3.4483]
[1757013338641,0.816,4283.9,4283.8,3.2078]
[1757013338844,0.816,4283.9,4283.8,3.4483]
[1757013339038,0.5695,4283.9,4283.8,3.919]
[1757013339234,0.3397,4283.9,4283.8,3.919]
[1757013339435,0.5695,4283.9,4283.8,3.6803]
[1757013339645,0.816,4283.9,4283.8,3.6803]